[Event "2nd Kalyan Dombivali 2019"]
[Site "Kalyan"]
[Date "2019.01.31"]
[Round "5"]
[White "Javheri, Jaydev"]
[Black "Isha Pritam Inamdar"]
[Result "1-0"]
[ECO "B01"]
[WhiteElo "1675"]
[BlackElo "1380"]
[Annotator "NA"]
[PlyCount "179"]
[EventDate "2019.01.28"]
[EventType "swiss"]
[EventRounds "10"]
[EventCountry "IND"]
[SourceTitle "playchess.com"]
[Source "ChessBase"]
[SourceQuality "1"]
[TimeControl "5400+30"]

1. e4 {[%emt 0:00:00]} d5 {[%emt 0:00:00]} 2. Nc3 {[%emt 0:00:00]} d4 {[%emt 0:00:54]} 3. Nce2 {[%emt 0:01:36]} e5 {[%emt 0:00:29]} 4. Nf3 {[%emt 0:00:35]} Bd6 {[%emt 0:00:39]} 5. Ng3 {[%emt 0:00:41]} Be6 {[%emt 0:01:12]} 6. Bb5+ {[%emt 0:02:43]} c6 {[%emt 0:00:27]} 7. Be2 {[%emt 0:03:25]} f6 {[%emt 0:04:29]} 8. O-O {[%emt 0:00:23]} Ne7 {[%emt 0:00:18]} 9. d3 {[%emt 0:01:01]} c5 {[%emt 0:01:17]} 10. Ne1 {[%emt 0:06:03]} O-O {[%emt 0:09:34]} 11. Bg4 {[%emt 0:02:54]} Bf7 {[%emt 0:02:49]} 12. Qf3 {[%emt 0:08:44]} Nbc6 {[%emt 0:02:07]} 13. h4 {[%emt 0:05:27]} Be8 {[%emt 0:10:42]} 14. h5 {[%emt 0:04:24]} h6 {[%emt 0:06:07]} 15. Be6+ {[%emt 0:12:16]} Kh8 {[%emt 0:01:35]} 16. Qg4 {[%emt 0:01:55]} Qc7 {[%emt 0:04:15]} 17. Nf3 {[%emt 0:00:48]} Nd8 {[%emt 0:04:32]} 18. Bf5 {[%emt 0:03:02]} Ndc6 {[%emt 0:04:20]} 19. Nh4 {[%emt 0:01:27]} Rd8 {[%emt 0:01:04]} 20. Be6 {[%emt 0:04:37]} Bd7 {[%emt 0:10:29]} 21. Bxd7 {[%emt 0:02:51]} Qxd7 {[%emt 0:00:16]} 22. Ngf5 {[%emt 0:00:33]} Nxf5 {[%emt 0:00:07]} 23. Ng6+ {[%emt 0:00:50]} Kg8 {[%emt 0:01:24]} 24. Nxf8 {[%emt 0:00:07]} Kxf8 {[%emt 0:00:04]} 25. Qxf5 {[%emt 0:04:46]} Qxf5 {[%emt 0:00:24]} 26. exf5 {[%emt 0:00:02]} Nb4 {[%emt 0:00:12]} 27. f4 {[%emt 0:00:42]} Nxc2 {[%emt 0:01:13]} 28. Rb1 {[%emt 0:00:06]} Nb4 {[%emt 0:01:18]} 29. fxe5 {[%emt 0:01:19]} Bxe5 {[%emt 0:00:23]} 30. Rd1 {[%emt 0:00:17]} Nd5 {[%emt 0:09:00]} 31. Bd2 {[%emt 0:00:31]} Kf7 {[%emt 0:03:32]} 32. b4 {[%emt 0:00:59]} cxb4 {[%emt 0:02:05]} 33. Bxb4 {[%emt 0:00:12]} Ne3 {[%emt 0:00:05]} 34. Rdc1 {[%emt 0:01:14]} Nxf5 {[%emt 0:00:17]} 35. Be1 {[%emt 0:01:10]} b6 {[%emt 0:01:07]} 36. a4 {[%emt 0:00:36]} Bf4 {[%emt 0:00:27]} 37. Rc6 {[%emt 0:01:24]} Ne7 {[%emt 0:00:30]} 38. Rc4 {[%emt 0:00:27]} Nd5 {[%emt 0:02:57]} 39. Bf2 {[%emt 0:04:11]} Ne3 {[%emt 0:00:59]} 40. Rc6 Rd5 {[%emt 0:01:23]} 41. Rb5 {[%emt 0:02:29]} Rd7 {[%emt 0:01:32]} 42. a5 {[%emt 0:00:52]} bxa5 {[%emt 0:00:05]} 43. Rxa5 {[%emt 0:00:07]} g6 {[%emt 0:01:29]} 44. hxg6+ {[%emt 0:01:00]} Kxg6 {[%emt 0:00:02]} 45. Raa6 {[%emt 0:01:19]} Ng4 {[%emt 0:01:06]} 46. g3 {[%emt 0:03:16]} Be5 {[%emt 0:01:19]} 47. Rc4 {[%emt 0:02:06]} Nxf2 {[%emt 0:00:12]} 48. Kxf2 {[%emt 0:00:11]} Kf5 {[%emt 0:00:24]} 49. Rc1 {[%emt 0:01:54]} Kg4 {[%emt 0:01:11]} 50. Rg1 {[%emt 0:00:47]} Rc7 {[%emt 0:00:06]} 51. Ra2 {[%emt 0:00:31]} Bd6 {[%emt 0:02:31]} 52. Re2 {[%emt 0:00:36]} Re7 {[%emt 0:01:06]} 53. Rxe7 {[%emt 0:03:12]} Bxe7 {[%emt 0:00:01]} 54. Re1 {[%emt 0:00:08]} Bc5 {[%emt 0:00:12]} 55. Re4+ {[%emt 0:00:11]} Kg5 {[%emt 0:00:06]} 56. Kf3 {[%emt 0:00:19]} a5 {[%emt 0:01:26]} 57. Re6 {[%emt 0:00:13]} h5 {[%emt 0:00:40]} 58. Rc6 {[%emt 0:00:10]} Bb4 {[%emt 0:00:19]} 59. Rc4 {[%emt 0:01:06]} Bc3 {[%emt 0:00:22]} 60. Rc5+ {[%emt 0:00:45]} Kg6 {[%emt 0:00:40]} 61. Rc4 {[%emt 0:00:41]} Kg5 {[%emt 0:00:36]} 62. Rc8 {[%emt 0:01:52]} Kf5 {[%emt 0:00:38]} 63. Rg8 {[%emt 0:01:28]} Bd2 {[%emt 0:00:16]} 64. Rh8 {[%emt 0:01:17]} Kg5 {[%emt 0:00:24]} 65. Ke4 {[%emt 0:01:56]} Bc3 {[%emt 0:00:30]} 66. Rg8+ {[%emt 0:00:20]} Kh6 {[%emt 0:00:46]} 67. Kf5 {[%emt 0:00:22]} Kh7 {[%emt 0:00:16]} 68. Rf8 {[%emt 0:01:00]} Be1 {[%emt 0:03:35]} 69. Rf7+ {[%emt 0:00:18]} Kh8 {[%emt 0:01:54]} 70. Kg6 {[%emt 0:00:27]} Kg8 {[%emt 0:00:15]} 71. Re7 {[%emt 0:01:08]} Kf8 {[%emt 0:01:17]} 72. Rxe1 {[%emt 0:00:09]} a4 {[%emt 0:00:06]} 73. Ra1 {[%emt 0:00:07]} Ke7 {[%emt 0:00:04]} 74. Rxa4 {[%emt 0:00:05]} Ke6 {[%emt 0:00:04]} 75. Ra5 {[%emt 0:00:09]} Ke7 {[%emt 0:00:08]} 76. Ra6 {[%emt 0:00:08]} Kd7 {[%emt 0:00:04]} 77. Kxf6 {[%emt 0:00:11]} Kc7 {[%emt 0:00:06]} 78. Ke5 {[%emt 0:00:12]} Kb7 {[%emt 0:00:04]} 79. Rh6 {[%emt 0:00:08]} Kc7 {[%emt 0:00:02]} 80. Kd5 {[%emt 0:00:06]} Kb7 {[%emt 0:00:04]} 81. Kc5 {[%emt 0:00:14]} Ka7 {[%emt 0:00:04]} 82. Kb5 {[%emt 0:00:03]} Kb7 {[%emt 0:00:03]} 83. Rh7+ {[%emt 0:00:08]} Kc8 {[%emt 0:00:04]} 84. Kc6 {[%emt 0:00:19]} Kd8 {[%emt 0:00:04]} 85. Ra7 {[%emt 0:00:07]} Ke8 {[%emt 0:00:06]} 86. Kd6 {[%emt 0:00:03]} Kf8 {[%emt 0:00:08]} 87. Ke6 {[%emt 0:00:04]} Kg8 {[%emt 0:00:04]} 88. Kf6 {[%emt 0:00:01]} Kh8 {[%emt 0:00:08]} 89. Kg6 {[%emt 0:00:07]} Kg8 {[%emt 0:00:02]} 90. Ra8# {[%emt 0:00:03]} 1-0

[Event "2nd Kalyan Dombivali 2019"]
[Site "Kalyan"]
[Date "2019.01.31"]
[Round "5"]
[White "Ankur Mahesh Gokhale"]
[Black "Lad Mandar Pradip"]
[Result "1-0"]
[ECO "B23"]
[WhiteElo "1628"]
[BlackElo "1364"]
[Annotator "NA"]
[PlyCount "65"]
[EventDate "2019.01.28"]
[EventType "swiss"]
[EventRounds "10"]
[EventCountry "IND"]
[SourceTitle "playchess.com"]
[Source "ChessBase"]
[SourceQuality "1"]
[TimeControl "5400+30"]

1. e4 {[%emt 0:00:00]} c5 {[%emt 0:00:00]} 2. Nc3 {[%emt 0:00:00]} a6 {[%emt 0:00:13]} 3. g3 {[%emt 0:00:00]} b5 {[%emt 0:00:36]} 4. Bg2 {[%emt 0:00:00]} Bb7 {[%emt 0:00:06]} 5. d3 {[%emt 0:00:00]} d6 {[%emt 0:00:57]} 6. f4 {[%emt 0:00:04]} e6 {[%emt 0:00:55]} 7. Nf3 {[%emt 0:00:06]} Nf6 {[%emt 0:01:42]} 8. O-O {[%emt 0:00:07]} Be7 {[%emt 0:01:51]} 9. h3 {[%emt 0:00:10]} h5 {[%emt 0:06:11]} 10. Ng5 Nfd7 {[%emt 0:07:19]} 11. Ne2 {[%emt 0:07:30]} Bxg5 {[%emt 0:03:31]} 12. fxg5 {[%emt 0:00:07]} g6 {[%emt 0:00:26]} 13. Nf4 {[%emt 0:02:15]} e5 {[%emt 0:13:59]} 14. Nd5 {[%emt 0:01:14]} Bxd5 {[%emt 0:00:19]} 15. exd5 {[%emt 0:00:02]} a5 {[%emt 0:02:16]} 16. c3 {[%emt 0:01:07]} Qb6 {[%emt 0:01:45]} 17. Be3 {[%emt 0:00:35]} Na6 {[%emt 0:01:15]} 18. Qf3 {[%emt 0:00:17]} Rf8 {[%emt 0:12:07]} 19. g4 {[%emt 0:01:40]} hxg4 {[%emt 0:00:34]} 20. Qxg4 {[%emt 0:00:09]} O-O-O {[%emt 0:01:45]} 21. Rf2 {[%emt 0:00:12]} Kb8 {[%emt 0:05:46]} 22. Raf1 {[%emt 0:00:37]} b4 {[%emt 0:06:31]} 23. c4 {[%emt 0:01:29]} b3 {[%emt 0:00:52]} 24. a3 {[%emt 0:00:22]} a4 {[%emt 0:02:32]} 25. Rxf7 {[%emt 0:00:12]} Rxf7 {[%emt 0:00:30]} 26. Rxf7 {[%emt 0:00:30]} Qa5 {[%emt 0:02:43]} 27. Kh2 {[%emt 0:02:13]} Kc8 {[%emt 0:01:26]} 28. Qe6 {[%emt 0:00:52]} Qe1 {[%emt 0:01:39]} 29. Bf2 {[%emt 0:01:54]} Qd2 {[%emt 0:00:52]} 30. Qxd6 {[%emt 0:00:26]} Nab8 {[%emt 0:05:03]} 31. Bxc5 {[%emt 0:01:00]} Qxb2 {[%emt 0:01:02]} 32. Bb6 {[%emt 0:00:11]} Na6 {[%emt 0:01:45]} 33. Bxd8 {[%emt 0:00:25]} 1-0

[Event "2nd Kalyan Dombivali 2019"]
[Site "Kalyan"]
[Date "2019.01.31"]
[Round "5"]
[White "Shivshankar Iyer S"]
[Black "Gurav Sanmil"]
[Result "1-0"]
[ECO "D11"]
[WhiteElo "1619"]
[BlackElo "1311"]
[Annotator "NA"]
[PlyCount "55"]
[EventDate "2019.01.28"]
[EventType "swiss"]
[EventRounds "10"]
[EventCountry "IND"]
[SourceTitle "playchess.com"]
[Source "ChessBase"]
[SourceQuality "1"]
[TimeControl "5400+30"]

1. d4 {[%emt 0:00:00]} d5 {[%emt 0:00:00]} 2. c4 {[%emt 0:00:00]} c6 {[%emt 0:00:00]} 3. Nf3 {[%emt 0:00:00]} Nf6 {[%emt 0:00:00]} 4. g3 {[%emt 0:00:03]} a6 {[%emt 0:00:00]} 5. Bg2 {[%emt 0:00:42]} b5 {[%emt 0:00:09]} 6. cxd5 {[%emt 0:00:38]} cxd5 {[%emt 0:00:08]} 7. O-O {[%emt 0:04:38]} Bf5 {[%emt 0:01:01]} 8. Nc3 {[%emt 0:01:00]} e6 {[%emt 0:00:24]} 9. Nh4 {[%emt 0:00:19]} Bg6 {[%emt 0:00:33]} 10. Bg5 {[%emt 0:01:11]} Be7 {[%emt 0:01:23]} 11. Nxg6 {[%emt 0:09:15]} hxg6 {[%emt 0:01:10]} 12. Bxf6 {[%emt 0:00:08]} Bxf6 {[%emt 0:02:01]} 13. e4 {[%emt 0:00:22]} dxe4 {[%emt 0:01:28]} 14. Nxe4 {[%emt 0:00:09]} Ra7 {[%emt 0:02:55]} 15. Nxf6+ {[%emt 0:08:34]} Qxf6 {[%emt 0:00:56]} 16. a4 {[%emt 0:02:24]} b4 {[%emt 0:03:46]} 17. Qb3 {[%emt 0:01:40]} a5 {[%emt 0:07:40]} 18. d5 {[%emt 0:02:06]} e5 {[%emt 0:01:23]} 19. Qe3 {[%emt 0:00:48]} Re7 {[%emt 0:15:44]} 20. Qc5 {[%emt 0:01:08]} Qa6 {[%emt 0:01:36]} 21. Rac1 {[%emt 0:01:49]} Kd8 {[%emt 0:14:05]} 22. d6 {[%emt 0:03:01]} Rd7 {[%emt 0:00:25]} 23. Rfd1 {[%emt 0:00:39]} e4 {[%emt 0:09:13]} 24. Bf1 {[%emt 0:00:22]} Qb7 {[%emt 0:02:01]} 25. Qxa5+ {[%emt 0:03:00]} Ke8 {[%emt 0:00:32]} 26. Bb5 {[%emt 0:01:17]} e3 {[%emt 0:01:47]} 27. Bxd7+ {[%emt 0:01:34]} Nxd7 {[%emt 0:00:29]} 28. Re1 {[%emt 0:02:22]} 1-0

[Event "2nd Kalyan Dombivali 2019"]
[Site "Kalyan"]
[Date "2019.01.31"]
[Round "5"]
[White "Kadam Rishi R"]
[Black "Pethe Varad"]
[Result "1-0"]
[ECO "C10"]
[WhiteElo "1604"]
[BlackElo "1359"]
[Annotator "NA"]
[PlyCount "103"]
[EventDate "2019.01.28"]
[EventType "swiss"]
[EventRounds "10"]
[EventCountry "IND"]
[SourceTitle "playchess.com"]
[Source "ChessBase"]
[SourceQuality "1"]
[TimeControl "5400+30"]

1. e4 {[%emt 0:00:00]} e6 {[%emt 0:00:00]} 2. d4 {[%emt 0:00:00]} d5 {[%emt 0:00:00]} 3. Nc3 {[%emt 0:00:00]} dxe4 {[%emt 0:00:00]} 4. Nxe4 {[%emt 0:00:05]} Nf6 {[%emt 0:00:02]} 5. Nxf6+ {[%emt 0:00:26]} Qxf6 {[%emt 0:00:08]} 6. Nf3 {[%emt 0:00:04]} h6 {[%emt 0:00:17]} 7. Bd3 {[%emt 0:00:19]} Bd6 {[%emt 0:00:24]} 8. O-O {[%emt 0:00:34]} O-O {[%emt 0:00:21]} 9. Bd2 {[%emt 0:03:54]} Bd7 {[%emt 0:02:16]} 10. Qe2 {[%emt 0:04:14]} c5 {[%emt 0:03:21]} 11. dxc5 {[%emt 0:16:58]} Bxc5 {[%emt 0:00:38]} 12. Qe4 {[%emt 0:03:18]} Qg6 {[%emt 0:04:31]} 13. Qxg6 {[%emt 0:01:05]} fxg6 {[%emt 0:00:07]} 14. Bxg6 {[%emt 0:00:05]} Bc6 {[%emt 0:00:56]} 15. Ne5 {[%emt 0:02:00]} Bd5 {[%emt 0:02:04]} 16. Bc3 {[%emt 0:00:00]} Bc6 {[%emt 0:00:00]} 17. Bd2 {[%emt 0:01:00]} Bd5 {[%emt 0:01:00]} 18. Bc3 {[%emt 0:01:12]} Rf4 {[%emt 0:00:00]} 19. Bd2 {[%emt 0:00:00]} Rf8 {[%emt 0:01:56]} 20. Bc3 {[%emt 0:01:00]} Rf4 {[%emt 0:02:53]} 21. g3 {[%emt 0:04:05]} Rf8 {[%emt 0:01:38]} 22. Rad1 {[%emt 0:01:22]} a6 {[%emt 0:06:21]} 23. b3 {[%emt 0:05:40]} Ba7 {[%emt 0:03:05]} 24. Bb4 {[%emt 0:02:05]} Nc6 {[%emt 0:06:40]} 25. Nxc6 {[%emt 0:01:04]} Bxc6 {[%emt 0:00:41]} 26. Bxf8 {[%emt 0:00:05]} Rxf8 {[%emt 0:00:06]} 27. Rd2 {[%emt 0:00:36]} Bc5 {[%emt 0:01:49]} 28. c3 {[%emt 0:01:53]} Bb6 {[%emt 0:06:05]} 29. Re1 {[%emt 0:01:15]} Rf3 {[%emt 0:03:41]} 30. Be4 {[%emt 0:01:31]} Rxc3 {[%emt 0:00:50]} 31. Bxc6 {[%emt 0:00:33]} Rxc6 {[%emt 0:00:11]} 32. Ree2 {[%emt 0:00:06]} Bc5 {[%emt 0:00:56]} 33. Rd8+ {[%emt 0:01:27]} Kh7 {[%emt 0:00:46]} 34. Re8 {[%emt 0:00:07]} b6 {[%emt 0:03:17]} 35. R8xe6 {[%emt 0:00:49]} Rc7 {[%emt 0:00:16]} 36. Kg2 {[%emt 0:00:17]} a5 {[%emt 0:00:14]} 37. f4 {[%emt 0:00:52]} Rd7 {[%emt 0:00:10]} 38. f5 {[%emt 0:01:35]} Rf7 {[%emt 0:00:15]} 39. g4 {[%emt 0:00:20]} h5 {[%emt 0:00:24]} 40. h3 {[%emt 0:00:33]} hxg4 {[%emt 0:00:33]} 41. hxg4 {[%emt 0:00:05]} Rd7 {[%emt 0:00:10]} 42. Kf3 {[%emt 0:01:05]} Rd1 {[%emt 0:00:40]} 43. Re8 {[%emt 0:00:49]} Rf1+ {[%emt 0:00:26]} 44. Ke4 {[%emt 0:00:05]} Kh6 {[%emt 0:00:16]} 45. Re6+ {[%emt 0:01:14]} Kg5 {[%emt 0:02:39]} 46. Rg6+ {[%emt 0:00:33]} Kh4 {[%emt 0:00:02]} 47. Rxg7 {[%emt 0:00:07]} Kg3 {[%emt 0:00:16]} 48. Ke5 {[%emt 0:01:24]} Rd1 {[%emt 0:00:24]} 49. Ke6 {[%emt 0:01:07]} Rd6+ {[%emt 0:01:02]} 50. Kf7 {[%emt 0:00:24]} Kf4 {[%emt 0:00:18]} 51. f6 {[%emt 0:00:46]} Bd4 {[%emt 0:01:39]} 52. Re6 {[%emt 0:00:20]} 1-0

[Event "2nd Kalyan Dombivali 2019"]
[Site "Kalyan"]
[Date "2019.01.31"]
[Round "5"]
[White "Bhat Sanjay"]
[Black "Sarode Om"]
[Result "1-0"]
[ECO "A13"]
[WhiteElo "1597"]
[BlackElo "1427"]
[Annotator "NA"]
[PlyCount "91"]
[EventDate "2019.01.28"]
[EventType "swiss"]
[EventRounds "10"]
[EventCountry "IND"]
[SourceTitle "playchess.com"]
[Source "ChessBase"]
[SourceQuality "1"]
[TimeControl "5400+30"]

1. c4 {[%emt 0:00:00]} e6 {[%emt 0:00:01]} 2. g3 {[%emt 0:00:00]} g6 {[%emt 0:00:30]} 3. Bg2 {[%emt 0:00:00]} Bg7 {[%emt 0:00:13]} 4. d4 {[%emt 0:01:04]} d5 {[%emt 0:01:08]} 5. Nf3 {[%emt 0:00:08]} c6 {[%emt 0:02:11]} 6. O-O {[%emt 0:00:07]} Nd7 {[%emt 0:02:33]} 7. Nc3 {[%emt 0:04:48]} Ne7 {[%emt 0:08:22]} 8. e4 {[%emt 0:04:15]} dxc4 {[%emt 0:01:13]} 9. a4 {[%emt 0:01:07]} a5 {[%emt 0:02:20]} 10. Qe2 {[%emt 0:07:21]} b6 {[%emt 0:01:13]} 11. Rd1 {[%emt 0:00:04]} O-O {[%emt 0:10:51]} 12. Qxc4 {[%emt 0:00:49]} Bb7 {[%emt 0:00:56]} 13. h4 {[%emt 0:00:28]} Rc8 {[%emt 0:15:24]} 14. h5 {[%emt 0:00:35]} h6 {[%emt 0:02:24]} 15. hxg6 {[%emt 0:00:10]} Nxg6 {[%emt 0:00:40]} 16. Qe2 {[%emt 0:00:31]} Re8 {[%emt 0:04:01]} 17. Be3 {[%emt 0:05:52]} Qc7 {[%emt 0:11:54]} 18. Rac1 {[%emt 0:00:29]} Qb8 {[%emt 0:01:02]} 19. Nd2 {[%emt 0:03:27]} c5 {[%emt 0:09:17]} 20. Nc4 {[%emt 0:01:49]} Ba6 {[%emt 0:00:44]} 21. Nb5 {[%emt 0:00:49]} Bxb5 {[%emt 0:02:42]} 22. axb5 {[%emt 0:01:16]} cxd4 {[%emt 0:02:06]} 23. Bxd4 {[%emt 0:00:43]} e5 {[%emt 0:02:59]} 24. Bc3 {[%emt 0:02:36]} Rcd8 {[%emt 0:01:44]} 25. Nd6 {[%emt 0:01:13]} Re6 {[%emt 0:00:22]} 26. Nf5 {[%emt 0:00:08]} Nf6 {[%emt 0:04:25]} 27. Bd2 {[%emt 0:08:27]} Kh7 {[%emt 0:03:55]} 28. Bh3 {[%emt 0:00:06]} Ree8 {[%emt 0:01:09]} 29. Rc6 {[%emt 0:00:58]} Re6 {[%emt 0:04:20]} 30. Rc4 {[%emt 0:02:31]} Ree8 {[%emt 0:01:01]} 31. Rdc1 {[%emt 0:00:08]} Rc8 {[%emt 0:00:59]} 32. Rc6 {[%emt 0:04:33]} Rxc6 {[%emt 0:00:21]} 33. bxc6 {[%emt 0:00:31]} Qc7 {[%emt 0:00:17]} 34. b4 {[%emt 0:02:28]} axb4 {[%emt 0:00:27]} 35. Bxb4 {[%emt 0:00:02]} Bf8 {[%emt 0:00:37]} 36. Bxf8 {[%emt 0:04:42]} Rxf8 {[%emt 0:00:13]} 37. Qd2 {[%emt 0:00:10]} Ng8 {[%emt 0:01:07]} 38. Nd6 {[%emt 0:00:29]} Rd8 {[%emt 0:02:00]} 39. Bd7 {[%emt 0:00:17]} Nf6 {[%emt 0:00:57]} 40. Nf5 {[%emt 0:01:10]} Ng8 {[%emt 0:00:47]} 41. Kg2 {[%emt 0:02:08]} Nf8 {[%emt 0:00:31]} 42. Rh1 {[%emt 0:03:49]} Qxc6 {[%emt 0:00:30]} 43. Nxh6 {[%emt 0:03:12]} Rxd7 {[%emt 0:00:07]} 44. Nf5+ {[%emt 0:01:32]} Kg6 {[%emt 0:00:46]} 45. Rh6+ {[%emt 0:00:37]} Nxh6 {[%emt 0:00:25]} 46. Qxh6# {[%emt 0:00:02]} 1-0

[Event "2nd Kalyan Dombivali 2019"]
[Site "Kalyan"]
[Date "2019.01.31"]
[Round "5"]
[White "Vedant Nitin vekhande"]
[Black "Chhabra Aakash"]
[Result "1/2-1/2"]
[ECO "C01"]
[WhiteElo "1564"]
[BlackElo "1619"]
[Annotator "NA"]
[PlyCount "87"]
[EventDate "2019.01.28"]
[EventType "swiss"]
[EventRounds "10"]
[EventCountry "IND"]
[SourceTitle "playchess.com"]
[Source "ChessBase"]
[SourceQuality "1"]
[TimeControl "5400+30"]

1. e4 {[%emt 0:00:00]} e6 {[%emt 0:00:00]} 2. d4 {[%emt 0:00:00]} d5 {[%emt 0:00:00]} 3. exd5 {[%emt 0:00:00]} exd5 {[%emt 0:00:00]} 4. Nf3 {[%emt 0:00:06]} Nf6 {[%emt 0:00:00]} 5. Bd3 {[%emt 0:00:06]} Bd6 {[%emt 0:00:01]} 6. O-O {[%emt 0:00:06]} O-O {[%emt 0:00:07]} 7. Bg5 {[%emt 0:00:06]} Bg4 {[%emt 0:00:07]} 8. Nbd2 {[%emt 0:00:07]} Nbd7 {[%emt 0:00:08]} 9. c3 {[%emt 0:00:15]} c6 {[%emt 0:00:04]} 10. Qc2 {[%emt 0:00:16]} Qc7 {[%emt 0:00:05]} 11. Rae1 {[%emt 0:00:17]} Rfe8 {[%emt 0:00:24]} 12. Bh4 {[%emt 0:00:24]} Bh5 {[%emt 0:00:30]} 13. Bg3 {[%emt 0:00:07]} Bg6 {[%emt 0:00:07]} 14. Nh4 {[%emt 0:00:44]} Nf8 {[%emt 0:05:03]} 15. Ndf3 {[%emt 0:00:48]} Bxd3 {[%emt 0:03:47]} 16. Qxd3 {[%emt 0:00:36]} Ne4 {[%emt 0:00:22]} 17. Bxd6 {[%emt 0:01:09]} Qxd6 {[%emt 0:01:08]} 18. Nf5 {[%emt 0:01:14]} Qd7 {[%emt 0:01:58]} 19. Ng3 {[%emt 0:00:14]} Nxg3 {[%emt 0:01:10]} 20. hxg3 {[%emt 0:00:23]} f6 {[%emt 0:00:32]} 21. Qd2 {[%emt 0:01:06]} Ne6 {[%emt 0:05:16]} 22. Re3 {[%emt 0:00:30]} Nc7 {[%emt 0:00:51]} 23. Rfe1 {[%emt 0:00:21]} Nb5 {[%emt 0:00:50]} 24. Qd3 {[%emt 0:01:26]} Nd6 {[%emt 0:01:15]} 25. Nd2 {[%emt 0:00:13]} Rxe3 {[%emt 0:00:52]} 26. Rxe3 {[%emt 0:00:18]} Re8 {[%emt 0:00:49]} 27. f3 {[%emt 0:01:51]} Kf7 {[%emt 0:02:06]} 28. Kf2 {[%emt 0:00:38]} Rxe3 {[%emt 0:00:08]} 29. Qxe3 {[%emt 0:00:24]} Qe6 {[%emt 0:01:02]} 30. g4 {[%emt 0:00:23]} Qxe3+ {[%emt 0:01:59]} 31. Kxe3 {[%emt 0:00:08]} Ke6 {[%emt 0:00:13]} 32. Kf2 Kf7 {[%emt 0:00:30]} 33. Ke3 {[%emt 0:01:00]} Ke6 {[%emt 0:00:30]} 34. Kf2 Kf7 {[%emt 0:00:30]} 35. Ke3 {[%emt 0:01:00]} Ke6 {[%emt 0:00:30]} 36. b3 {[%emt 0:11:08]} b5 {[%emt 0:06:18]} 37. b4 {[%emt 0:05:34]} f5 {[%emt 0:03:15]} 38. gxf5+ {[%emt 0:02:45]} Nxf5+ {[%emt 0:00:20]} 39. Kf2 {[%emt 0:00:11]} Nd6 {[%emt 0:04:33]} 40. Nb3 {[%emt 0:00:32]} Nc4 {[%emt 0:00:31]} 41. Nc5+ {[%emt 0:00:12]} Ke7 {[%emt 0:00:19]} 42. Ke2 {[%emt 0:00:24]} a5 {[%emt 0:01:33]} 43. bxa5 {[%emt 0:00:58]} Nxa5 {[%emt 0:00:11]} 44. a4 {[%emt 0:00:13]} 1/2-1/2

[Event "2nd Kalyan Dombivali 2019"]
[Site "Kalyan"]
[Date "2019.01.31"]
[Round "5"]
[White "Awade Pradeep"]
[Black "Snehal, Bhosale"]
[Result "0-1"]
[ECO "A07"]
[WhiteElo "1538"]
[BlackElo "2135"]
[Annotator "NA"]
[PlyCount "72"]
[EventDate "2019.01.28"]
[EventType "swiss"]
[EventRounds "10"]
[EventCountry "IND"]
[SourceTitle "playchess.com"]
[Source "ChessBase"]
[SourceQuality "1"]
[TimeControl "5400+30"]

1. Nf3 {[%emt 0:00:00]} d5 {[%emt 0:00:00]} 2. g3 {[%emt 0:00:05]} Nf6 {[%emt 0:00:00]} 3. Bg2 {[%emt 0:00:02]} c6 {[%emt 0:00:18]} 4. O-O {[%emt 0:00:30]} Bg4 {[%emt 0:00:07]} 5. h3 {[%emt 0:00:29]} Bh5 {[%emt 0:00:20]} 6. d3 {[%emt 0:00:55]} Nbd7 {[%emt 0:00:15]} 7. Nbd2 {[%emt 0:01:10]} e5 {[%emt 0:00:59]} 8. e4 {[%emt 0:01:26]} Bd6 {[%emt 0:01:02]} 9. Re1 {[%emt 0:06:31]} O-O {[%emt 0:01:15]} 10. Nf1 {[%emt 0:00:36]} Re8 {[%emt 0:04:23]} 11. g4 {[%emt 0:01:51]} Bg6 {[%emt 0:00:20]} 12. Ng3 {[%emt 0:00:03]} Nc5 {[%emt 0:06:07]} 13. Bg5 {[%emt 0:04:20]} Ne6 {[%emt 0:07:55]} 14. Bh4 {[%emt 0:16:47]} Nf4 {[%emt 0:03:40]} 15. Bf1 {[%emt 0:06:25]} Bc7 {[%emt 0:06:06]} 16. Nd2 {[%emt 0:10:21]} Qd6 {[%emt 0:04:39]} 17. Nb3 $17 {[%emt 0:02:39]} Nd7 {[%emt 0:05:02]} 18. Qf3 {[%emt 0:03:53]} Bd8 {[%emt 0:07:00]} 19. Bxd8 {[%emt 0:03:31]} Raxd8 {[%emt 0:00:17]} 20. exd5 {[%emt 0:01:14]} cxd5 {[%emt 0:09:00]} 21. Ne2 {[%emt 0:02:04]} Nxe2+ {[%emt 0:01:39]} 22. Qxe2 {[%emt 0:04:15]} f6 {[%emt 0:06:39]} 23. Bg2 {[%emt 0:02:06]} Nf8 {[%emt 0:00:28]} 24. c4 {[%emt 0:06:04]} Bf7 {[%emt 0:00:33]} 25. Rec1 {[%emt 0:07:37]} Ng6 {[%emt 0:07:20]} 26. Qc2 {[%emt 0:02:59]} Nf4 {[%emt 0:00:46]} 27. Bf1 {[%emt 0:00:58]} h5 {[%emt 0:01:13]} 28. c5 {[%emt 0:01:17]} Qc7 {[%emt 0:01:24]} 29. Nd2 {[%emt 0:02:47]} hxg4 {[%emt 0:01:44]} 30. hxg4 {[%emt 0:00:02]} f5 {[%emt 0:00:20]} 31. g5 {[%emt 0:03:40]} Qe7 {[%emt 0:00:57]} 32. Nf3 {[%emt 0:00:16]} Bh5 {[%emt 0:00:10]} 33. Bg2 {[%emt 0:00:57]} e4 {[%emt 0:01:08]} 34. dxe4 {[%emt 0:00:58]} fxe4 {[%emt 0:00:20]} 35. Qd2 {[%emt 0:07:27]} Nxg2 {[%emt 0:01:22]} 36. Kxg2 {[%emt 0:00:41]} Bxf3+ 0-1